Cogmind - Beta 14 @@@ ROGUE MODE // 2025.03.31 @ 18:18:27 Player: golanco Result: Self-destructed Performance ------------- Evolutions (1) 500 Regions Visited (3) 600 Robots Destroyed (6) 30 Value Destroyed (83) 83 Prototype IDs (0) 0 Alien Tech Used (0) 0 Bonus (93) 93 TOTAL SCORE: 1306 Bonus ------- Follower Combat Kills 93 Cogmind --------- Core Integrity 344/400 Matter 300/300 Energy 125/125 System Corruption 0% Temperature Cool (0) Movement Rolling (105) Ox1 Location -9/Materials Parts ------- > --- POWER (1) -------- Light Ion Engine > --- PROPULSION (2) --- Wheel Compact Wheel > --- UTILITY (3) ------ High-capacity Storage Unit Transport Network Coupler Salvage Targeting Computer > --- WEAPON (3) ------- EM Pulse Gun Particle Gun Light Assault Rifle > --- INVENTORY (20) --- Ion Engine Ion Engine High-capacity Storage Unit Power Shielding EM Shotgun EM Shotgun Medium Laser Particle Gun Beam Cannon Light Assault Rifle Peak State ------------ > --- POWER ------------ Light Ion Engine > --- PROPULSION ------- Wheel Compact Wheel > --- UTILITY ---------- High-capacity Storage Unit Transport Network Coupler Hacking Suite > --- WEAPON ----------- EM Pulse Gun Particle Gun Grenade Launcher > --- INVENTORY -------- Ion Engine Flight Unit High-capacity Storage Unit Medium Laser Beam Cannon Light Assault Rifle Light Assault Rifle [Rating: 12] Favorites ----------- Power Light Ion Engine Engine Light Ion Engine Propulsion Compact Wheel Wheel Compact Wheel Utility High-capacity Storage Unit Storage High-capacity Storage Unit Processor Transport Network Coupler Hackware Hacking Suite Weapon EM Pulse Gun Energy Gun EM Pulse Gun Energy Cannon Beam Cannon Ballistic Gun Light Assault Rifle Launcher Grenade Launcher Build | -11 -10 -10 -9 ------- Run | Yrd Mat Min Mat Slots Evolved 2 | . . . 2 Power . | . . . . Propulsion . | . . . . Utility 1 | . . . 1 Weapon 1 | . . . 1 Parts Attached 15 | 6 3 1 5 Power 1 | 1 . . . Engine 1 | 1 . . . Core . | . . . . Reactor . | . . . . Propulsion 2 | 2 . . . Treads . | . . . . Leg . | . . . . Wheel 2 | 2 . . . Hover . | . . . . Flight . | . . . . Utility 6 | 1 2 . 3 Device . | . . . . Storage 2 | 1 1 . . Processor 3 | . 1 . 2 Hackware 1 | . . . 1 Protection . | . . . . Artifact . | . . . . Weapon 6 | 2 1 1 2 Energy Gun 2 | 1 . . 1 Energy Cannon 1 | . 1 . . Ballistic Gun 2 | 1 . . 1 Ballistic Cannon . | . . . . Launcher 1 | . . 1 . Special Weapon . | . . . . Impact Weapon . | . . . . Slashing Weapon . | . . . . Piercing Weapon . | . . . . Special Melee Weapon . | . . . . Unidentified Prototypes . | . . . . Parts Lost 2 | . . . 2 Power . | . . . . Propulsion . | . . . . Utility 1 | . . . 1 Weapon 1 | . . . 1 Highest Loss Streak 2 | . . . 2 To Critical Strikes . | . . . . Average Slot Usage (%) 96 | . 92 100 95 Engine 12 | . 14 14 11 Wheel 25 | . 28 28 22 Storage 12 | . 14 14 11 Processor 12 | . 5 14 15 Hackware 1 | . . . 3 Energy Gun 17 | . 14 14 22 Energy Cannon 2 | . 9 . . Ballistic Gun 3 | . 4 . 6 Launcher 6 | . . 14 4 Peak Build Rating 12 | 6 7 7 12 Average Rating 8 | 4 6 7 10 On Entrance 5 | . 6 7 7 Naked Turns . | . . . . Heaviest Build 53 | 11 53 48 51 Greatest Support 26 | 26 26 26 26 Greatest Overweight (x) 2 | 1 2 1 1 Average Overweight (x) . | . . 1 1 Largest Inventory Capacity 20 | 8 20 20 20 Average Capacity 17 | 6 13 20 20 Most Carried 10 | 2 7 8 10 Average Carried 6 | 1 4 7 8 Final Capacity 20 | 8 20 20 20 Final Carried 10 | 2 7 8 10 Class Distribution -------------------- 58% | Mutant 41% | Skirmisher Dominant Class ---------------- Mutant | -10/Materials Mutant | -10/Mines Skirmisher | -9/Materials Resources | -11 -10 -10 -9 ----------- Run | Yrd Mat Min Mat Matter Collected 353 | 198 60 42 53 Remotely . | . . . . Salvage Created 249 | . 60 . 189 Parts 7 | . 1 . 6 Haulers Intercepted 1 | . 1 . . Recyclers Shooed 1 | . . . 1 Parts Field Recycled . | . . . . Retrieved Matter . | . . . . Parts Self-Destructed . | . . . . Prevented . | . . . . Kills | -11 -10 -10 -9 ------- Run | Yrd Mat Min Mat Combat Hostiles Destroyed 4 | . . . 4 Guns 2 | . . . 2 AOE 2 | . . . 2 Classes Destroyed 4 | . 1 . 3 Hauler 1 | . 1 . . Recycler 1 | . . . 1 Swarmer 3 | . . . 3 Sentry 1 | . . . 1 Best Kill Streak 3 | . 1 . 3 Combat Bots Only 3 | . . . 3 Max Kills in Single Turn 2 | . 1 . 2 Gunslinging . | . . . . Exploded 2 | . . . 2 Melee . | . . . . Uniques/NPCs Destroyed . | . . . . Combat | -11 -10 -10 -9 -------- Run | Yrd Mat Min Mat Hostile Shots Fired 24 | . . . 24 Missed 6 | . . . 6 Damage Taken 204 | . . . 204 Core 56 | . . . 56 Absorbed by Shields . | . . . . Core Remaining (%) 100 | 100 . 100 . Volleys Fired 18 | . 3 1 14 Largest 3 | . 2 1 3 Hottest 125 | . 100 40 125 Shots Fired 38 | . 6 1 31 Gun 35 | . 3 1 31 Cannon 3 | . 3 . . Launcher . | . . . . Special . | . . . . Kinetic 3 | . . . 3 Thermal 17 | . 3 . 14 Explosive . | . . . . Electromagnetic 18 | . 3 1 14 Robot Hit Streak 6 | . 4 . 6 Robot Miss Streak 3 | . 1 1 3 Penetration Max . | . . . . Secondary Targets . | . . . . Shots Hit Robots 20 | . 5 . 15 Core Hits 7 | . 1 . 6 Critical Kills . | . . . . Critical Parts Destroyed . | . . . . Critical Strikes . | . . . . Melee Attacks . | . . . . Impact . | . . . . Slashing . | . . . . Piercing . | . . . . Sneak Attacks . | . . . . Combat Hostiles . | . . . . Follow-up Attacks . | . . . . Damage Inflicted 346 | . 76 . 270 Guns 238 | . 42 . 196 Cannons 34 | . 34 . . Explosions 74 | . . . 74 Melee . | . . . . Ramming . | . . . . Kinetic 16 | . . . 16 Thermal 200 | . 34 . 166 Explosive . | . . . . Electromagnetic 130 | . 42 . 88 Impact . | . . . . Slashing . | . . . . Piercing . | . . . . Highest Corruption . | . . . . Average Corruption . | . . . . Corruption Purged . | . . . . Corruption Blocked . | . . . . Overload Shots . | . . . . Overflow Damage 8 | . . . 8 Projectiles . | . . . . Explosions 8 | . . . 8 Melee . | . . . . Knockbacks . | . . . . Impact . | . . . . Kinetic . | . . . . Secondary . | . . . . Self-Inflicted Damage 30 | . . . 30 Shots 1 | . . . 1 Rammed . | . . . . Targets Rammed . | . . . . Kicked . | . . . . Crushed . | . . . . Highest Temperature 228 | . 78 . 228 Average Temperature 77 | . 37 . 85 Received Heat Transfer 18 | . . . 18 Effects 2 | . . . 2 Energy Bleed 2 | . . . 2 Siege Activations . | . . . . Robots Corrupted . | . . . . Combat Hostiles . | . . . . Parts Fried . | . . . . Impact Corruptions . | . . . . Robots Melted . | . . . . Combat Hostiles . | . . . . Parts Melted 1 | . . . 1 Heat Transferred 296 | . 74 . 222 Parts Sabotaged . | . . . . Parts Stolen . | . . . . Parts Stripped . | . . . . Power Chain Reactions 1 | . . . 1 Alert | -11 -10 -10 -9 ------- Run | Yrd Mat Min Mat Peak Influence 126 | . 7 60 126 Initial 23 | . . 2 23 Average 44 | . 3 24 86 Maximum Alert Level . | . . . . Low Security (%) 100 | 100 100 100 100 Level 1 . | . . . . Level 2 . | . . . . Level 3 . | . . . . Level 4 . | . . . . Level 5 . | . . . . High Security . | . . . . Max Security . | . . . . Squads Dispatched 1 | . 1 . . Investigation 1 | . 1 . . Extermination . | . . . . Reinforcement . | . . . . Assault . | . . . . Garrison . | . . . . Intercept . | . . . . Searches Triggered . | . . . . Construction Impeded . | . . . . Haulers Reinforced . | . . . . Active Scanning Responses . | . . . . Cargo Convoy Interrupts . | . . . . Stealth | -11 -10 -10 -9 --------- Run | Yrd Mat Min Mat Distress Signals . | . . . . Communications Jammed . | . . . . Distress Signals . | . . . . Times Spotted 9 | . . 2 7 Peak Tracking Total 3 | . . 2 3 Tactical Retreats . | . . . . Traps | -11 -10 -10 -9 ------- Run | Yrd Mat Min Mat Traps Triggered 1 | . 1 . . Indirectly . | . . . . Trap Hack Attempts . | . . . . Triggered . | . . . . Disarmed . | . . . . Reprogrammed . | . . . . Reused . | . . . . Traps Extracted . | . . . . Installed . | . . . . Triggered . | . . . . Machines | -11 -10 -10 -9 ---------- Run | Yrd Mat Min Mat Machines Disabled . | . . . . Max in Single Turn . | . . . . Machines Repaired . | . . . . Machines Dismantled . | . . . . Machines Sabotaged . | . . . . Overloaded Fab Kills . | . . . . Hacking | -11 -10 -10 -9 --------- Run | Yrd Mat Min Mat Machines Accessed 5 | . 2 . 3 Terminals 4 | . 1 . 3 Fabricators . | . . . . Repair Stations . | . . . . Recycling Units 1 | . 1 . . Scanalyzers . | . . . . Garrison Access . | . . . . Total Hacks 8 | . 3 . 5 Successful 5 | . 3 . 2 Failed 3 | . . . 3 Catastrophic 2 | . . . 2 Database Lockouts . | . . . . Manual 4 | . . . 4 Terminals 6 | . 1 . 5 Fabricators . | . . . . Repair Stations . | . . . . Recycling Units 2 | . 2 . . Scanalyzers . | . . . . Garrison Access . | . . . . Terminal Hacks 3 | . 1 . 2 Hauler Manifests 2 | . 1 . 1 Registered Components 1 | . . . 1 Fabricator Hacks . | . . . . Repair Station Hacks . | . . . . Recycling Unit Hacks 2 | . 2 . . Retrieve Components 2 | . 2 . . Scanalyzer . | . . . . Garrison Access Hacks . | . . . . Unauthorized Hacks . | . . . . Terminals . | . . . . Fabricators . | . . . . Repair Stations . | . . . . Recycling Units . | . . . . Scanalyzers . | . . . . Garrison Access . | . . . . Data Cores Recovered 1 | . . . 1 Used . | . . . . Hacking Detections 2 | . . . 2 Full Trace Events 1 | . . . 1 Feedback Events . | . . . . Feedback Blocked . | . . . . Robot Schematics Acquired . | . . . . Robots Built . | . . . . Authchips . | . . . . Time . | . . . . Total Robot Build Rating . | . . . . Part Schematics Acquired . | . . . . Parts Built . | . . . . Authchips . | . . . . Time . | . . . . Total Part Build Rating . | . . . . Parts Repaired . | . . . . Time . | . . . . Parts Recycled . | . . . . Recycled Matter . | . . . . Retrieved Matter . | . . . . Retrieved Components 3 | . 3 . . Parts Scanalyzed . | . . . . Part Schematics Acquired . | . . . . Parts Damaged . | . . . . Bothacking | -11 -10 -10 -9 ------------ Run | Yrd Mat Min Mat Used RIF Installer . | . . . . Robots Hacked . | . . . . Non-combat . | . . . . Combat . | . . . . Robot Hacks Applied . | . . . . Relay Couplers Released . | . . . . Fabnet Peak Effective % . | . . . . Robots Rewired . | . . . . Allies Hacked . | . . . . Hacks Repelled . | . . . . Allies | -11 -10 -10 -9 -------- Run | Yrd Mat Min Mat Total Allies 3 | . . 3 . Largest Group 3 | . . 3 3 Highest-Rated Group 40 | . . 40 40 Highest-Rated Ally 16 | . . 16 16 Total Orders . | . . . . Ally Attacks 38 | . . 10 28 Total Damage 384 | . . 144 240 Kills 4 | . . 2 2 Allies Corrupted . | . . . . Allies Melted . | . . . . Intel | -11 -10 -10 -9 ------- Run | Yrd Mat Min Mat Robot Analysis Total . | . . . . Derelict Logs Recovered . | . . . . Drone Launches . | . . . . Drone Recoveries . | . . . . Exploration | -11 -10 -10 -9 ------------- Run | Yrd Mat Min Mat Turns Passed 764 | 46 164 241 313 Spaces Moved 619 | 40 151 218 210 Core 12 | 12 . . . Treads . | . . . . Legs . | . . . . Wheels 607 | 28 151 218 210 Hover . | . . . . Flight . | . . . . Fastest Speed 50 | 50 90 105 105 Average Speed 101 | 88 96 105 105 Slowest Speed 120 | 100 120 105 105 Overloaded Moves . | . . . . Propulsion Burnouts . | . . . . Robots Hopped . | . . . . Cave-ins Triggered . | . . . . Exploration Rate (%) 27 | 3 31 56 21 Regions Visited 3 Branch Regions 1 Pre-discovered Areas 1 | . . 1 . Known Exits Taken . | . . . . Unknown Exits Taken 3 | 1 1 1 . Scrap Searched . | . . . . Spaces Dug . | . . . . Terrain Destroyed 2 | . . . 2 Melee . | . . . . Projectile . | . . . . AOE 2 | . . . 2 Terrain Rammed . | . . . . Walls Destroyed . | . . . . Machines Disabled . | . . . . Actions | -11 -10 -10 -9 --------- Run | Yrd Mat Min Mat Total 711 | 47 162 228 274 Wait 45 | . . 8 37 Move 616 | 39 150 217 210 Hop . | . . . . Pick Up 13 | 2 4 1 6 Fast Attach 11 | 6 3 . 2 Attach 3 | . . . 3 Detach 1 | . 1 . . Swap 1 | . . 1 . Drop 3 | . 1 . 2 Fire 18 | . 3 1 14 Melee . | . . . . Ram . | . . . . Kick . | . . . . Crush . | . . . . Escape Stasis . | . . . . Rewire . | . . . . Trap . | . . . . Miscellaneous . | . . . . Route ------- -11/Scrapyard -10/Materials -10/Mines -9/Materials History --------- Turn | Location | Event 18 | -11/Scrapyard | Discovered new exit (range 15) 47 | -11/Scrapyard | Entered Materials 193 | -10/Materials | Discovered new exit (range 16) 211 | -10/Materials | Entered Mines 246 | -10/Mines | Met a Derelict bent on vengeance 308 | -10/Mines | Build established: Mutant 338 | -10/Mines | Assisted by bots powering up and referring to "LRC-V3" 378 | -10/Mines | Learned location of Storage (-8) 444 | -10/Mines | Discovered new exit (range 5) 452 | -10/Mines | Entered Materials 452 | -9/Materials | Accompanied by 3 allies 452 | -9/Materials | Evolved 2 slots: Utility x1, Weapon x1 758 | -9/Materials | Build established: Skirmisher 765 | -9/Materials | Self-destructed Last Messages --------------- A-02 Transporter 2x Hvy. Ion Engine 2x Cld. Ion Engine 2x Imp. Medium Laser A-02 Transporter 6x Utility Shielding Discarded Signal Interpreter. Acquired Salvage Targeting Computer. Connecting with Terminal... >>Inventory(Components) Retrieving component inventory records... Found 4 registered component stockpiles: EL6XIGCCOM: EM Shotgun 636YOWKJJL: Particle Gun JA7CEQAPL2: Terrain Scanner AOHGYEAWE2: Signal Interpreter Downloaded coordinate data. R-06 Scavenger collects Flight Unit. Acquired 12 matter. Acquired 8 matter. Map ----- +----------------------------------------------------+ | | | | | | | | | | | | | | | | | | | | | | | | | | | | | | | | | | | | | | | ???????????????????????????????#######???????????? | | ?????????##??????????????????? ??????????? | | ?????????# #########????????? ?????????? | | ?????????# #????????# #????????? | | ?????????# """ #????????# #?######## | | "????????# """k########## """ """ + | | "????????# """ r r @*#?? """ """ ?????# | | "????????# """ ####### #????"" ""???????# | | ????????# "R % #?????# #????##+########## | | ???????# """ ! #?????#%#????# / | | ???????# % #?????# #????# / | | ???????#####+#####?????#%###### """ ""### / | | #+########## ######### """ T"#?# | | # # """ ""#?# | | /= # # #?#### | | # +*% #????? | | ## ####### # # ####????? | | ?# #?????###############+# ### ######### | | ?# #??????????????# # ### ## | | ?a +??????????????# """ + ## # | | ?# #??????????????# """ # ## # | | ?# #??????????????# """ ## #### ## % + | | ?# #??????????????# ## #??? ## ###+#### | | ?# #??????????????# ## #??? ## #??????? | | ?# #??????????????######### #??? #### ###?????? | | ?# #??????!???????????????#+####+#### #?????? | | ?# #??????????????????????# # ##### | | ?# #??????????????????????# T + | | ?# #??????????????????????# # #####?? | | ?# ???????????????????????# # #?????? | | ?? ???????????????????????###########+## #?????? | +----------------------------------------------------+ Best States ------------- Heat Dissipation 28 Energy Generation 10 Energy Capacity 125 Matter Stores 300 Matter Capacity 300 Sight Range 16 Terrain Scan Density 10 Evasion (%) 42 Salvage Targeting 1 Offensive Hacking 10 Item Schematics ----------------- None Robot Schematics ------------------ None Fabricated ------------ Nothing Alien Tech Used ----------------- None Achievements -------------- None Challenges ------------ None Game ------ Seed InsulationRefineryBoomstick Manual? 0 Play Time 00:09:55 Cumulative 32.5 hours Start 2025.03.31 @ 18:11:52 End 2025.03.31 @ 18:18:27 Sessions 1 Manual Loads 0 Difficulty Rogue Special Mode None Game No. 89 Rogue 89 Adventurer 0 Explorer 0 Win Type - Total 0 Types 0/0/0/0/0/0/0/0/0 Lore% 16 Gallery% 24 Achievement% 25 Wizard Run 0 Options --------- Layout 1 ASCII 0 Keyboard 0 Movement Mouse Keybinds 0 Fullscreen 1 Font 36/Smallcaps Map View 50x40 Zoom Use 0% Tactical HUD 0 Map Filters NONE Filters NONE Steam 1 RUN: 0025a82d-9027-4237-a31d-a858a60b4efc